[Event "*** Titled Tuesday Blitz"]
[Site "Chess.com"]
[Date "2021.02.09"]
[Round "4"]
[White "Noam_Vitenberg"]
[Black "Irina_Baraeva"]
[Result "0-1"]
[WhiteElo "2420"]
[BlackElo "2283"]
[TimeControl "180+1"]
[EndTime "10:40:20 PST"]
[Termination "Irina_Baraeva won on time"]

1. Nf3 {[%clk 0:03:00.9]} 1... d5 {[%clk 0:02:59.6]} 2. b3 {[%clk 0:02:58.5]}
2... c5 {[%clk 0:02:56.3]} 3. Bb2 {[%clk 0:02:57.9]} 3... Nc6 {[%clk 0:02:56.4]}
4. d4 {[%clk 0:02:56]} 4... Nf6 {[%clk 0:02:54.3]} 5. e3 {[%clk 0:02:40.8]} 5...
Bg4 {[%clk 0:02:53.4]} 6. Be2 {[%clk 0:02:27]} 6... e6 {[%clk 0:02:53.1]} 7. O-O
{[%clk 0:02:23.8]} 7... Bd6 {[%clk 0:02:49.5]} 8. c4 {[%clk 0:02:16.5]} 8... O-O
{[%clk 0:02:45.9]} 9. Nbd2 {[%clk 0:02:12.6]} 9... cxd4 {[%clk 0:02:43.5]} 10.
Nxd4 {[%clk 0:02:12.4]} 10... Bxe2 {[%clk 0:02:42.7]} 11. Qxe2 {[%clk
0:02:13.3]} 11... Qd7 {[%clk 0:02:32.3]} 12. Rac1 {[%clk 0:02:08.6]} 12... e5
{[%clk 0:02:31.4]} 13. Nb5 {[%clk 0:01:54.3]} 13... Rac8 {[%clk 0:02:20.2]} 14.
cxd5 {[%clk 0:01:48.7]} 14... Nxd5 {[%clk 0:02:19.9]} 15. Nc4 {[%clk 0:01:48.4]}
15... Bb8 {[%clk 0:02:15.6]} 16. Rfd1 {[%clk 0:01:47.8]} 16... Qe6 {[%clk
0:02:09.6]} 17. Qf3 {[%clk 0:01:31.3]} 17... Rfd8 {[%clk 0:01:57.9]} 18. Nc3
{[%clk 0:01:23.1]} 18... Nxc3 {[%clk 0:01:55.9]} 19. Bxc3 {[%clk 0:01:24]} 19...
e4 {[%clk 0:01:49.9]} 20. Qh5 {[%clk 0:01:20.7]} 20... f6 {[%clk 0:01:24.3]} 21.
h3 {[%clk 0:01:00.8]} 21... Ne7 {[%clk 0:01:20]} 22. Qb5 {[%clk 0:00:55.6]}
22... Nd5 {[%clk 0:01:12.6]} 23. Bd4 {[%clk 0:00:37.7]} 23... b6 {[%clk
0:01:11.3]} 24. Nd2 {[%clk 0:00:32.2]} 24... Bd6 {[%clk 0:01:01.6]} 25. Rc4
{[%clk 0:00:22.2]} 25... Rxc4 {[%clk 0:00:52.5]} 26. Nxc4 {[%clk 0:00:19.4]}
26... Bb8 {[%clk 0:00:52.1]} 27. Bb2 {[%clk 0:00:14.7]} 27... Bc7 {[%clk
0:00:41]} 28. Rd4 {[%clk 0:00:12.9]} 28... f5 {[%clk 0:00:31.9]} 29. Nd2 {[%clk
0:00:06.7]} 29... Be5 {[%clk 0:00:28.8]} 30. Nc4 {[%clk 0:00:01.3]} 30... Bxd4
{[%clk 0:00:28.2]} 31. Bxd4 {[%clk 0:00:02.2]} 31... f4 {[%clk 0:00:25.8]} 32.
g3 {[%clk 0:00:01.7]} 32... fxg3 {[%clk 0:00:22.2]} 33. fxg3 {[%clk 0:00:02.6]}
33... Qxh3 {[%clk 0:00:21.1]} 34. Be5 {[%clk 0:00:02.9]} 34... Qg4 {[%clk
0:00:18.8]} 35. Nd6 {[%clk 0:00:01.5]} 35... Qd1+ {[%clk 0:00:18.1]} 36. Kg2
{[%clk 0:00:01.5]} 36... Nxe3+ {[%clk 0:00:17]} 37. Kh2 {[%clk 0:00:01.4]} 37...
Qd2+ {[%clk 0:00:16.6]} 38. Kh3 {[%clk 0:00:01.7]} 38... Qg2+ {[%clk 0:00:16.7]}
39. Kh4 {[%clk 0:00:02.3]} 39... Qh2+ {[%clk 0:00:16.6]} 40. Kg5 {[%clk
0:00:02.3]} 40... h6+ {[%clk 0:00:16.4]} 41. Kf4 {[%clk 0:00:02.2]} 41... Ng2+
{[%clk 0:00:15.4]} 42. Kxe4 {[%clk 0:00:01.9]} 42... Qh3 {[%clk 0:00:14.3]} 43.
Qd5+ {[%clk 0:00:02.2]} 43... Kh7 {[%clk 0:00:13.7]} 44. Qf7 {[%clk 0:00:02.6]}
44... Qg4+ {[%clk 0:00:13.4]} 45. Kd3 {[%clk 0:00:02.4]} 45... Qg6+ {[%clk
0:00:12.2]} 46. Qxg6+ {[%clk 0:00:02.3]} 46... Kxg6 {[%clk 0:00:12.8]} 47. Ke4
{[%clk 0:00:02.9]} 47... Ne1 {[%clk 0:00:10.7]} 48. Nc4 {[%clk 0:00:03]} 48...
Nc2 {[%clk 0:00:10.3]} 49. Bc7 {[%clk 0:00:03]} 49... Re8+ {[%clk 0:00:09.8]}
50. Kd3 {[%clk 0:00:02.8]} 50... Ne1+ {[%clk 0:00:09.4]} 51. Kd4 {[%clk
0:00:02.2]} 51... Nf3+ {[%clk 0:00:09.4]} 52. Kd5 {[%clk 0:00:02.8]} 52... Ng5
{[%clk 0:00:09.7]} 53. Bf4 {[%clk 0:00:02.7]} 53... Ne6 {[%clk 0:00:09.2]} 54.
Ne5+ {[%clk 0:00:02.8]} 54... Kf6 {[%clk 0:00:08.8]} 0-1

[Event "*** Titled Tuesday Blitz"]
[Site "Chess.com"]
[Date "2021.02.09"]
[Round "4"]
[White "Mikhail_Golubev"]
[Black "Yaacovn"]
[Result "0-1"]
[WhiteElo "2532"]
[BlackElo "2844"]
[TimeControl "180+1"]
[EndTime "10:40:21 PST"]
[Termination "Yaacovn won on time"]

1. e4 {[%clk 0:03:00.9]} 1... c6 {[%clk 0:02:59.5]} 2. d4 {[%clk 0:02:59.6]}
2... d5 {[%clk 0:03:00.4]} 3. Nc3 {[%clk 0:02:59.9]} 3... dxe4 {[%clk
0:03:00.9]} 4. Nxe4 {[%clk 0:03:00.8]} 4... Nf6 {[%clk 0:03:01.6]} 5. Nxf6+
{[%clk 0:02:59.3]} 5... gxf6 {[%clk 0:03:02.5]} 6. c3 {[%clk 0:02:59.7]} 6...
Qd5 {[%clk 0:03:02.2]} 7. Qb3 {[%clk 0:02:42.1]} 7... Nd7 {[%clk 0:03:01.5]} 8.
Ne2 {[%clk 0:02:16]} 8... Nb6 {[%clk 0:02:59]} 9. Nf4 {[%clk 0:02:13]} 9... Qxb3
{[%clk 0:02:50.5]} 10. axb3 {[%clk 0:02:12.6]} 10... Nd5 {[%clk 0:02:51]} 11.
Bc4 {[%clk 0:02:03.7]} 11... e6 {[%clk 0:02:43.6]} 12. O-O {[%clk 0:01:57]}
12... Bd6 {[%clk 0:02:43.5]} 13. Nh5 {[%clk 0:01:52.6]} 13... Ke7 {[%clk
0:02:42.7]} 14. Re1 {[%clk 0:01:50.2]} 14... Bd7 {[%clk 0:02:42.4]} 15. Bh6
{[%clk 0:01:44.5]} 15... Rhg8 {[%clk 0:02:39.5]} 16. Bg7 {[%clk 0:01:34.9]}
16... f5 {[%clk 0:01:56.6]} 17. Bxd5 {[%clk 0:01:32.6]} 17... cxd5 {[%clk
0:01:56.5]} 18. Bf6+ {[%clk 0:01:18.5]} 18... Kf8 {[%clk 0:01:55.1]} 19. Be5
{[%clk 0:01:18.6]} 19... Be7 {[%clk 0:01:49.8]} 20. Nf6 {[%clk 0:01:16.3]} 20...
Bxf6 {[%clk 0:01:47.5]} 21. Bxf6 {[%clk 0:01:17.2]} 21... Rg6 {[%clk 0:01:46]}
22. Be5 {[%clk 0:01:16.2]} 22... a6 {[%clk 0:01:43.2]} 23. h4 {[%clk 0:01:01.8]}
23... Ke7 {[%clk 0:01:42.9]} 24. g3 {[%clk 0:00:58.3]} 24... f6 {[%clk
0:01:40.5]} 25. Bf4 {[%clk 0:00:58.1]} 25... h5 {[%clk 0:01:37.8]} 26. Re3
{[%clk 0:00:57.8]} 26... Kf7 {[%clk 0:01:37.3]} 27. Rae1 {[%clk 0:00:56.6]}
27... Rg4 {[%clk 0:01:35.8]} 28. c4 {[%clk 0:00:53.3]} 28... Re8 {[%clk
0:01:04.3]} 29. cxd5 {[%clk 0:00:52.2]} 29... exd5 {[%clk 0:01:05.2]} 30. Rxe8
{[%clk 0:00:40.8]} 30... Bxe8 {[%clk 0:01:05.4]} 31. f3 {[%clk 0:00:40.9]} 31...
Rg8 {[%clk 0:01:05.1]} 32. Bd6 {[%clk 0:00:40.6]} 32... Bc6 {[%clk 0:01:01]} 33.
Re7+ {[%clk 0:00:38.5]} 33... Kg6 {[%clk 0:01:01.3]} 34. Kf2 {[%clk 0:00:38.2]}
34... Rd8 {[%clk 0:01:00.5]} 35. Bc5 {[%clk 0:00:36.2]} 35... f4 {[%clk
0:01:00.6]} 36. g4 {[%clk 0:00:32.3]} 36... Rh8 {[%clk 0:00:58.4]} 37. Bd6
{[%clk 0:00:16.3]} 37... hxg4 {[%clk 0:00:57.2]} 38. Bxf4 {[%clk 0:00:15.9]}
38... gxf3 {[%clk 0:00:54.5]} 39. Bg3 {[%clk 0:00:14.6]} 39... Kf5 {[%clk
0:00:46.7]} 40. Kxf3 {[%clk 0:00:14.3]} 40... a5 {[%clk 0:00:47]} 41. Be1 {[%clk
0:00:12.7]} 41... Rh5 {[%clk 0:00:37.3]} 42. Kg3 {[%clk 0:00:11.5]} 42... Rh8
{[%clk 0:00:36]} 43. Bxa5 {[%clk 0:00:10.9]} 43... Ra8 {[%clk 0:00:35]} 44. b4
{[%clk 0:00:10.1]} 44... Rg8+ {[%clk 0:00:30.3]} 45. Kf3 {[%clk 0:00:09.4]}
45... b5 {[%clk 0:00:29.9]} 46. Rc7 {[%clk 0:00:08.5]} 46... Be8 {[%clk
0:00:30.2]} 47. Rc5 {[%clk 0:00:08.4]} 47... Bh5+ {[%clk 0:00:30.7]} 48. Kf2
{[%clk 0:00:07.3]} 48... Ke4 {[%clk 0:00:28.8]} 49. Rxb5 {[%clk 0:00:07.3]}
49... Bf3 {[%clk 0:00:29.3]} 50. Rb6 {[%clk 0:00:06.3]} 50... Rg2+ {[%clk
0:00:29.2]} 51. Kf1 {[%clk 0:00:06.4]} 51... Rxb2 {[%clk 0:00:20.6]} 52. Re6+
{[%clk 0:00:05.8]} 52... Kd3 {[%clk 0:00:21]} 53. Rxf6 {[%clk 0:00:05.6]} 53...
Be4 {[%clk 0:00:21.4]} 54. h5 {[%clk 0:00:04.7]} 54... Ke3 {[%clk 0:00:21.7]}
55. Kg1 {[%clk 0:00:04.5]} 55... Rb1+ {[%clk 0:00:19.6]} 56. Kh2 {[%clk
0:00:03.8]} 56... Rh1+ {[%clk 0:00:19.8]} 57. Kg3 {[%clk 0:00:03.7]} 57... Rg1+
{[%clk 0:00:17.3]} 58. Kh4 {[%clk 0:00:03.1]} 58... Bf3 {[%clk 0:00:13.8]} 59.
b5 {[%clk 0:00:02.2]} 59... Rh1+ {[%clk 0:00:13.7]} 60. Kg3 {[%clk 0:00:01.7]}
60... Rxh5 {[%clk 0:00:14.6]} 0-1

[Event "*** Titled Tuesday Blitz"]
[Site "Chess.com"]
[Date "2021.02.09"]
[Round "4"]
[White "Funo09"]
[Black "CheckThis4"]
[Result "0-1"]
[WhiteElo "2770"]
[BlackElo "2599"]
[TimeControl "180+1"]
[EndTime "10:40:23 PST"]
[Termination "CheckThis4 won on time"]

1. e4 {[%clk 0:03:00.9]} 1... c5 {[%clk 0:02:59.8]} 2. Nc3 {[%clk 0:03:00.9]}
2... Nc6 {[%clk 0:02:59.4]} 3. Bb5 {[%clk 0:03:01.4]} 3... Nd4 {[%clk
0:02:58.6]} 4. Bc4 {[%clk 0:03:01.8]} 4... Nf6 {[%clk 0:02:56.9]} 5. Nf3 {[%clk
0:03:02.4]} 5... a6 {[%clk 0:02:54.2]} 6. d3 {[%clk 0:03:01.5]} 6... b5 {[%clk
0:02:47.6]} 7. Bb3 {[%clk 0:03:02.1]} 7... Nxb3 {[%clk 0:02:45]} 8. axb3 {[%clk
0:03:03]} 8... e6 {[%clk 0:02:45.3]} 9. Nxb5 {[%clk 0:03:00.5]} 9... Bb7 {[%clk
0:02:42.9]} 10. Nc3 {[%clk 0:02:58.9]} 10... d5 {[%clk 0:02:42.8]} 11. Qe2
{[%clk 0:02:57.1]} 11... Be7 {[%clk 0:02:39.1]} 12. O-O {[%clk 0:02:56.2]} 12...
O-O {[%clk 0:02:38.8]} 13. Bg5 {[%clk 0:02:56.8]} 13... h6 {[%clk 0:02:37.5]}
14. Bh4 {[%clk 0:02:56.9]} 14... Rc8 {[%clk 0:02:36.1]} 15. h3 {[%clk
0:02:50.2]} 15... Nxe4 {[%clk 0:02:20.5]} 16. dxe4 {[%clk 0:02:22.6]} 16... Bxh4
{[%clk 0:02:19.2]} 17. Rfd1 {[%clk 0:02:23]} 17... d4 {[%clk 0:02:15.1]} 18. Nb1
{[%clk 0:02:20.5]} 18... Bf6 {[%clk 0:02:09.5]} 19. Na3 {[%clk 0:02:20.1]} 19...
Qc7 {[%clk 0:02:03.2]} 20. Nc4 {[%clk 0:02:18.8]} 20... Rfd8 {[%clk 0:01:52]}
21. Ne1 {[%clk 0:02:17.6]} 21... Qc6 {[%clk 0:01:44]} 22. f3 {[%clk 0:02:14.1]}
22... Qc7 {[%clk 0:01:39.6]} 23. Nd3 {[%clk 0:02:13.7]} 23... Ra8 {[%clk
0:01:33.2]} 24. Ra5 {[%clk 0:02:09.4]} 24... Be7 {[%clk 0:01:33]} 25. f4 {[%clk
0:02:06.4]} 25... Bc6 {[%clk 0:01:31.1]} 26. Rda1 {[%clk 0:01:55.5]} 26... Bb5
{[%clk 0:01:29.7]} 27. Qh5 {[%clk 0:01:49.2]} 27... Qb7 {[%clk 0:01:22.2]} 28.
Re1 {[%clk 0:01:39]} 28... Bf8 {[%clk 0:01:21.9]} 29. Nde5 {[%clk 0:01:34.2]}
29... Qc7 {[%clk 0:01:12.8]} 30. Rea1 {[%clk 0:01:15.4]} 30... Rac8 {[%clk
0:01:05.9]} 31. Qg4 {[%clk 0:01:02.1]} 31... Qb7 {[%clk 0:00:56.9]} 32. Re1
{[%clk 0:01:02.6]} 32... Re8 {[%clk 0:00:53.3]} 33. Raa1 {[%clk 0:01:01.6]}
33... f6 {[%clk 0:00:53.5]} 34. Nd3 {[%clk 0:01:00.3]} 34... Qf7 {[%clk
0:00:51.4]} 35. Re2 {[%clk 0:00:50.7]} 35... Kh8 {[%clk 0:00:47.5]} 36. Rae1
{[%clk 0:00:49.5]} 36... Rcd8 {[%clk 0:00:47.3]} 37. Rf2 {[%clk 0:00:46.1]}
37... Rb8 {[%clk 0:00:45.1]} 38. Rfe2 {[%clk 0:00:38.5]} 38... Rbd8 {[%clk
0:00:44.5]} 39. f5 {[%clk 0:00:38.7]} 39... e5 {[%clk 0:00:30.3]} 40. Ra1 {[%clk
0:00:21.4]} 40... Bxc4 {[%clk 0:00:29.7]} 41. bxc4 {[%clk 0:00:22.3]} 41... Qxc4
{[%clk 0:00:30]} 42. b3 {[%clk 0:00:23.2]} 42... Qb5 {[%clk 0:00:30.2]} 43. Ra4
{[%clk 0:00:22.4]} 43... Rc8 {[%clk 0:00:30.4]} 44. Nb2 {[%clk 0:00:21.9]} 44...
d3 {[%clk 0:00:25.5]} 45. Nxd3 {[%clk 0:00:20]} 45... c4 {[%clk 0:00:26]} 46.
Rxc4 {[%clk 0:00:18.3]} 46... Rxc4 {[%clk 0:00:26.1]} 47. bxc4 {[%clk 0:00:19]}
47... Qxc4 {[%clk 0:00:26.5]} 48. Kh2 {[%clk 0:00:18.5]} 48... Rb8 {[%clk
0:00:25.9]} 49. Ne1 {[%clk 0:00:09.6]} 49... Rb1 {[%clk 0:00:22.7]} 50. Qf3
{[%clk 0:00:03.9]} 50... Bc5 {[%clk 0:00:19.5]} 51. h4 {[%clk 0:00:02.3]} 51...
Qd4 {[%clk 0:00:19.4]} 52. Kh3 {[%clk 0:00:01]} 52... Qg1 {[%clk 0:00:19.2]} 53.
Nd3 {[%clk 0:00:01.5]} 53... Qh1+ {[%clk 0:00:18.5]} 54. Kg3 {[%clk 0:00:01.8]}
54... Rf1 {[%clk 0:00:16.4]} 55. Qh5 {[%clk 0:00:02.4]} 55... Bd4 {[%clk
0:00:13.2]} 56. Qe8+ {[%clk 0:00:02.2]} 56... Kh7 {[%clk 0:00:13.6]} 57. Qg6+
{[%clk 0:00:02.7]} 57... Kh8 {[%clk 0:00:14.1]} 58. Nb4 {[%clk 0:00:01.7]} 58...
Rf4 {[%clk 0:00:12]} 0-1

[Event "*** Titled Tuesday Blitz"]
[Site "Chess.com"]
[Date "2021.02.09"]
[Round "4"]
[White "NikolaMa2000"]
[Black "CraiggoryC"]
[Result "1-0"]
[WhiteElo "1834"]
[BlackElo "2177"]
[TimeControl "180+1"]
[EndTime "10:40:28 PST"]
[Termination "NikolaMa2000 won by checkmate"]

1. d4 {[%clk 0:03:00.9]} 1... Nf6 {[%clk 0:02:59.8]} 2. c4 {[%clk 0:03:00.5]}
2... g6 {[%clk 0:03:00.1]} 3. Nc3 {[%clk 0:03:01]} 3... Bg7 {[%clk 0:03:00.6]}
4. e4 {[%clk 0:03:00.1]} 4... O-O {[%clk 0:03:01]} 5. f4 {[%clk 0:03:00.7]} 5...
c5 {[%clk 0:03:00.8]} 6. d5 {[%clk 0:02:58.9]} 6... d6 {[%clk 0:03:00.3]} 7. Nf3
{[%clk 0:02:58.8]} 7... e6 {[%clk 0:03:00.3]} 8. dxe6 {[%clk 0:02:58.9]} 8...
Bxe6 {[%clk 0:02:56]} 9. Bd3 {[%clk 0:02:57.4]} 9... Nc6 {[%clk 0:02:48.1]} 10.
O-O {[%clk 0:02:55.8]} 10... Bg4 {[%clk 0:02:22.1]} 11. h3 {[%clk 0:02:49.9]}
11... Bxf3 {[%clk 0:02:22.1]} 12. Qxf3 {[%clk 0:02:49.4]} 12... Nd4 {[%clk
0:02:22.5]} 13. Qf2 {[%clk 0:02:45.5]} 13... a6 {[%clk 0:02:15.2]} 14. a4 {[%clk
0:02:43.6]} 14... Rb8 {[%clk 0:02:14.4]} 15. Be3 {[%clk 0:02:43.1]} 15... Ne8
{[%clk 0:02:12.2]} 16. a5 {[%clk 0:02:36.9]} 16... Nb3 {[%clk 0:01:55.5]} 17.
Ra3 {[%clk 0:02:32]} 17... Nxa5 {[%clk 0:01:55.3]} 18. Nd5 {[%clk 0:02:20.1]}
18... Nc6 {[%clk 0:01:48.6]} 19. f5 {[%clk 0:02:13.7]} 19... Be5 {[%clk
0:01:18.5]} 20. Bh6 {[%clk 0:02:10.1]} 20... Nf6 {[%clk 0:01:05]} 21. Bxf8
{[%clk 0:01:48.6]} 21... Nxd5 {[%clk 0:01:04.3]} 22. Kh1 {[%clk 0:01:25.8]}
22... Qxf8 {[%clk 0:00:38.3]} 23. exd5 {[%clk 0:01:23.8]} 23... Nd4 {[%clk
0:00:33.3]} 24. fxg6 {[%clk 0:01:17.1]} 24... hxg6 {[%clk 0:00:33]} 25. Qh4
{[%clk 0:00:59.5]} 25... Qg7 {[%clk 0:00:20.6]} 26. Qe7 {[%clk 0:00:44.2]} 26...
f5 {[%clk 0:00:20.6]} 27. Qxg7+ {[%clk 0:00:23.7]} 27... Kxg7 {[%clk 0:00:21.5]}
28. g4 {[%clk 0:00:24.2]} 28... f4 {[%clk 0:00:20.3]} 29. Kg2 {[%clk 0:00:21.1]}
29... Rh8 {[%clk 0:00:19.6]} 30. Rh1 {[%clk 0:00:17.4]} 30... Kf6 {[%clk
0:00:18.9]} 31. h4 {[%clk 0:00:17.3]} 31... g5 {[%clk 0:00:17.8]} 32. hxg5+
{[%clk 0:00:16.6]} 32... Kxg5 {[%clk 0:00:18.1]} 33. Rxh8 {[%clk 0:00:17.1]}
33... Bxh8 {[%clk 0:00:18.8]} 34. Bf5 {[%clk 0:00:15.2]} 34... f3+ {[%clk
0:00:18.6]} 35. Kf2 {[%clk 0:00:14.2]} 35... Kf4 {[%clk 0:00:16.8]} 36. Be6
{[%clk 0:00:13.2]} 36... Nxe6 {[%clk 0:00:15.4]} 37. dxe6 {[%clk 0:00:13.1]}
37... Bd4+ {[%clk 0:00:15.3]} 38. Kf1 {[%clk 0:00:12.3]} 38... Bf6 {[%clk
0:00:15.2]} 39. Kf2 {[%clk 0:00:10.2]} 39... Bd4+ {[%clk 0:00:15]} 40. Kf1
{[%clk 0:00:09.2]} 40... Bf6 {[%clk 0:00:15]} 41. g5 {[%clk 0:00:09.5]} 41...
Bxg5 {[%clk 0:00:14.2]} 42. Rb3 {[%clk 0:00:07.5]} 42... Kg3 {[%clk 0:00:13.5]}
43. Rxb7 {[%clk 0:00:06.9]} 43... f2 {[%clk 0:00:12.7]} 44. e7 {[%clk
0:00:06.8]} 44... Bxe7 {[%clk 0:00:12.6]} 45. Rxe7 {[%clk 0:00:06.9]} 45... a5
{[%clk 0:00:12.6]} 46. Ra7 {[%clk 0:00:06.7]} 46... a4 {[%clk 0:00:12.8]} 47.
Rxa4 {[%clk 0:00:06.7]} 47... d5 {[%clk 0:00:12.9]} 48. cxd5 {[%clk 0:00:05.5]}
48... c4 {[%clk 0:00:13.8]} 49. Rxc4 {[%clk 0:00:03.2]} 49... Kf3 {[%clk
0:00:14.3]} 50. d6 {[%clk 0:00:04]} 50... Ke3 {[%clk 0:00:15.2]} 51. d7 {[%clk
0:00:04]} 51... Kd3 {[%clk 0:00:15]} 52. d8=Q+ {[%clk 0:00:04.9]} 52... Kxc4
{[%clk 0:00:15.3]} 53. Qd2 {[%clk 0:00:04.6]} 53... Kb3 {[%clk 0:00:16.2]} 54.
Kxf2 {[%clk 0:00:04.8]} 54... Ka2 {[%clk 0:00:17.1]} 55. Ke2 {[%clk 0:00:04.5]}
55... Ka1 {[%clk 0:00:18]} 56. Qc1+ {[%clk 0:00:04.1]} 56... Ka2 {[%clk
0:00:18.3]} 57. Kd2 {[%clk 0:00:03.6]} 57... Kb3 {[%clk 0:00:18.5]} 58. Qc3+
{[%clk 0:00:03.5]} 58... Ka2 {[%clk 0:00:18.9]} 59. Qa3+ {[%clk 0:00:03.5]}
59... Kb1 {[%clk 0:00:19.1]} 60. Qd3+ {[%clk 0:00:02.2]} 60... Ka2 {[%clk
0:00:19.1]} 61. b4 {[%clk 0:00:01.7]} 61... Ka1 {[%clk 0:00:19.4]} 62. Kc2
{[%clk 0:00:01.7]} 62... Ka2 {[%clk 0:00:20.3]} 63. Qb3+ {[%clk 0:00:02.3]}
63... Ka1 {[%clk 0:00:20.3]} 64. Qb2# {[%clk 0:00:02.5]} 1-0

[Event "*** Titled Tuesday Blitz"]
[Site "Chess.com"]
[Date "2021.02.09"]
[Round "4"]
[White "DanielTitichoca"]
[Black "Fiona"]
[Result "0-1"]
[WhiteElo "2287"]
[BlackElo "2121"]
[TimeControl "180+1"]
[EndTime "10:40:31 PST"]
[Termination "Fiona won on time"]

1. e4 {[%clk 0:03:00]} 1... e5 {[%clk 0:02:59.4]} 2. Nf3 {[%clk 0:03:00.1]} 2...
Nc6 {[%clk 0:02:59.4]} 3. Bb5 {[%clk 0:02:54.5]} 3... a6 {[%clk 0:02:59.5]} 4.
Ba4 {[%clk 0:02:51.4]} 4... d6 {[%clk 0:02:59.4]} 5. O-O {[%clk 0:02:48.4]} 5...
Bd7 {[%clk 0:02:58.8]} 6. c3 {[%clk 0:02:25]} 6... Nge7 {[%clk 0:02:58.2]} 7. d4
{[%clk 0:02:17]} 7... Ng6 {[%clk 0:02:57.6]} 8. Be3 {[%clk 0:01:58.9]} 8... Be7
{[%clk 0:02:51.7]} 9. Nbd2 {[%clk 0:01:56.7]} 9... h6 {[%clk 0:02:51.6]} 10. Bb3
{[%clk 0:01:52.2]} 10... Bg5 {[%clk 0:02:44.6]} 11. a4 {[%clk 0:01:50.3]} 11...
Qf6 {[%clk 0:02:29.7]} 12. a5 {[%clk 0:01:42.9]} 12... Nf4 {[%clk 0:02:18]} 13.
Nc4 {[%clk 0:01:14.4]} 13... Bg4 {[%clk 0:02:10.6]} 14. d5 {[%clk 0:01:03]}
14... Ne7 {[%clk 0:02:04.5]} 15. Ba4+ {[%clk 0:00:59.7]} 15... Kf8 {[%clk
0:02:04.5]} 16. Bd2 {[%clk 0:00:52.7]} 16... Neg6 {[%clk 0:01:54.9]} 17. Ne3
{[%clk 0:00:51.9]} 17... Bh5 {[%clk 0:01:08.2]} 18. h3 {[%clk 0:00:22]} 18...
Nxh3+ {[%clk 0:01:00.9]} 19. Kh2 {[%clk 0:00:20.4]} 19... Bxe3 {[%clk
0:00:41.8]} 20. fxe3 {[%clk 0:00:18.5]} 20... Ng5 {[%clk 0:00:41.7]} 21. Nxg5
{[%clk 0:00:15.6]} 21... Qxg5 {[%clk 0:00:42.6]} 22. Qe1 {[%clk 0:00:16]} 22...
Nh4 {[%clk 0:00:35.5]} 23. Qf2 {[%clk 0:00:14]} 23... f6 {[%clk 0:00:29.3]} 24.
Be1 {[%clk 0:00:12.8]} 24... Ng6 {[%clk 0:00:28.4]} 25. Qf5 {[%clk 0:00:12.4]}
25... Qxf5 {[%clk 0:00:16.9]} 26. exf5 {[%clk 0:00:13.3]} 26... Ne7 {[%clk
0:00:17]} 27. e4 {[%clk 0:00:09.9]} 27... Be2 {[%clk 0:00:16.9]} 28. Rf2 {[%clk
0:00:09.6]} 28... Bd3 {[%clk 0:00:17.2]} 29. Bc2 {[%clk 0:00:06.9]} 29... Bxc2
{[%clk 0:00:17.1]} 30. Rxc2 {[%clk 0:00:07.8]} 30... g5 {[%clk 0:00:16.4]} 31.
c4 {[%clk 0:00:07.8]} 31... h5 {[%clk 0:00:13.7]} 32. Ra3 {[%clk 0:00:06]} 32...
Kg7 {[%clk 0:00:13.7]} 33. Rb3 {[%clk 0:00:06.4]} 33... Rhb8 {[%clk 0:00:11.9]}
34. Bf2 {[%clk 0:00:06.9]} 34... h4 {[%clk 0:00:08.8]} 35. c5 {[%clk 0:00:07.3]}
35... dxc5 {[%clk 0:00:06.6]} 36. Rxc5 {[%clk 0:00:07.6]} 36... c6 {[%clk
0:00:06]} 37. d6 {[%clk 0:00:06.9]} 37... Nc8 {[%clk 0:00:04.3]} 38. Rd3 {[%clk
0:00:06.5]} 38... Na7 {[%clk 0:00:03.9]} 39. d7 {[%clk 0:00:03.1]} 39... Rd8
{[%clk 0:00:04.5]} 40. Rc4 {[%clk 0:00:03.6]} 40... Nb5 {[%clk 0:00:04.8]} 41.
Bb6 {[%clk 0:00:03.8]} 41... Kf7 {[%clk 0:00:04.7]} 42. Bxd8 {[%clk 0:00:02.5]}
42... Rxd8 {[%clk 0:00:05.3]} 43. b4 {[%clk 0:00:02.8]} 43... Nd4 {[%clk
0:00:05.3]} 44. Rcxd4 {[%clk 0:00:03.1]} 44... exd4 {[%clk 0:00:06.2]} 45. Rxd4
{[%clk 0:00:04]} 45... Ke7 {[%clk 0:00:06.3]} 46. Kh3 {[%clk 0:00:04]} 46...
Rxd7 {[%clk 0:00:06.5]} 47. Rc4 {[%clk 0:00:04.4]} 47... Rd3+ {[%clk 0:00:05.9]}
48. Kg4 {[%clk 0:00:04.3]} 48... Rg3+ {[%clk 0:00:04.6]} 49. Kh5 {[%clk
0:00:05.2]} 49... Rxg2 {[%clk 0:00:04.9]} 50. Kg6 {[%clk 0:00:05.5]} 50... h3
{[%clk 0:00:04.8]} 51. e5 {[%clk 0:00:05.7]} 51... fxe5 {[%clk 0:00:03]} 52. f6+
{[%clk 0:00:06.1]} 52... Ke6 {[%clk 0:00:03]} 53. f7 {[%clk 0:00:03.6]} 53...
Rf2 {[%clk 0:00:02.8]} 0-1